[Event "*** Titled Tuesday Blitz"]
[Site "Chess.com"]
[Date "2020.12.29"]
[Round "3"]
[White "Olga_Zhuravleva"]
[Black "pastouche06"]
[Result "0-1"]
[WhiteElo "2303"]
[BlackElo "2527"]
[TimeControl "180+1"]
[EndTime "10:28:33 PST"]
[Termination "pastouche06 won by resignation"]

1. e4 {[%clk 0:03:00.9]} 1... c6 {[%clk 0:02:59.9]} 2. Nf3 {[%clk 0:02:59.6]}
2... d5 {[%clk 0:03:00.1]} 3. Nc3 {[%clk 0:03:00.1]} 3... dxe4 {[%clk
0:03:00.3]} 4. Nxe4 {[%clk 0:03:00.1]} 4... Nf6 {[%clk 0:03:00.9]} 5. Ng3 {[%clk
0:03:00]} 5... h5 {[%clk 0:03:00.3]} 6. h3 {[%clk 0:02:59.2]} 6... h4 {[%clk
0:02:55.6]} 7. Ne2 {[%clk 0:02:59.1]} 7... c5 {[%clk 0:02:49.6]} 8. d4 {[%clk
0:02:58.4]} 8... Nc6 {[%clk 0:02:44.8]} 9. Bg5 {[%clk 0:02:56.1]} 9... cxd4
{[%clk 0:02:28]} 10. Nexd4 {[%clk 0:02:54.9]} 10... Nxd4 {[%clk 0:02:06.8]} 11.
Qxd4 {[%clk 0:02:53.8]} 11... Qxd4 {[%clk 0:02:03]} 12. Nxd4 {[%clk 0:02:53.4]}
12... Ne4 {[%clk 0:02:03.1]} 13. Be3 {[%clk 0:02:45]} 13... a6 {[%clk
0:01:59.7]} 14. Bd3 {[%clk 0:02:40.5]} 14... Nc5 {[%clk 0:01:54.4]} 15. Be2
{[%clk 0:02:38.2]} 15... e5 {[%clk 0:01:52.1]} 16. Nf3 {[%clk 0:02:36.1]} 16...
f6 {[%clk 0:01:52.2]} 17. O-O-O {[%clk 0:02:34.4]} 17... Be6 {[%clk 0:01:49.3]}
18. b3 {[%clk 0:02:29]} 18... Rd8 {[%clk 0:01:45.2]} 19. Kb2 {[%clk 0:02:26.2]}
19... g5 {[%clk 0:01:31.5]} 20. Rxd8+ {[%clk 0:02:11.7]} 20... Kxd8 {[%clk
0:01:32.4]} 21. Rd1+ {[%clk 0:02:11.3]} 21... Kc7 {[%clk 0:01:30.2]} 22. Nh2
{[%clk 0:02:03.8]} 22... Be7 {[%clk 0:01:22]} 23. Ng4 {[%clk 0:01:58.8]} 23...
Nd7 {[%clk 0:01:13.1]} 24. c4 {[%clk 0:01:44.4]} 24... f5 {[%clk 0:01:10.2]} 25.
Nh2 {[%clk 0:01:42.4]} 25... Bf6 {[%clk 0:01:02.7]} 26. Kb1 {[%clk 0:01:35.3]}
26... e4 {[%clk 0:00:56.2]} 27. f4 {[%clk 0:01:29.2]} 27... exf3 {[%clk
0:00:51]} 28. Bxf3 {[%clk 0:01:26.6]} 28... Re8 {[%clk 0:00:47.8]} 29. Bd4
{[%clk 0:01:22.1]} 29... Bf7 {[%clk 0:00:32.6]} 30. Bf2 {[%clk 0:01:05.4]} 30...
Bg6 {[%clk 0:00:24.4]} 31. Nf1 {[%clk 0:01:04.7]} 31... g4 {[%clk 0:00:22.9]}
32. Bxb7 {[%clk 0:01:01.2]} 32... f4+ {[%clk 0:00:19.5]} 33. Kc1 {[%clk
0:00:59.8]} 33... Re2 {[%clk 0:00:17.6]} 34. Bd4 {[%clk 0:00:54.5]} 34... Kxb7
{[%clk 0:00:14.7]} 35. Bxf6 {[%clk 0:00:51.5]} 35... Nxf6 {[%clk 0:00:15.6]} 36.
Rd6 {[%clk 0:00:50.8]} 36... Rxg2 {[%clk 0:00:11.2]} 37. Rxf6 {[%clk 0:00:49.9]}
37... gxh3 {[%clk 0:00:11.1]} 38. Rxf4 {[%clk 0:00:45]} 38... Rg1 {[%clk
0:00:10.8]} 39. Rf2 {[%clk 0:00:40.6]} 39... Bd3 {[%clk 0:00:08.6]} 40. Kd2
{[%clk 0:00:38.6]} 40... Bxf1 {[%clk 0:00:08.6]} 41. Ke3 {[%clk 0:00:38.1]}
41... Bg2 {[%clk 0:00:08.4]} 42. Rf7+ {[%clk 0:00:34.5]} 42... Kc6 {[%clk
0:00:08.6]} 43. Rf6+ {[%clk 0:00:34.3]} 43... Kd7 {[%clk 0:00:08.6]} 44. Kf2
{[%clk 0:00:28.2]} 44... Rf1+ {[%clk 0:00:08.5]} 0-1

[Event "*** Titled Tuesday Blitz"]
[Site "Chess.com"]
[Date "2020.12.29"]
[Round "3"]
[White "beto-betun"]
[Black "Nara_Kh"]
[Result "0-1"]
[WhiteElo "2173"]
[BlackElo "2355"]
[TimeControl "180+1"]
[EndTime "10:28:34 PST"]
[Termination "Nara_Kh won by checkmate"]

1. d4 {[%clk 0:03:00.9]} 1... f5 {[%clk 0:02:59.6]} 2. Nf3 {[%clk 0:02:59.5]}
2... Nf6 {[%clk 0:02:58.9]} 3. g3 {[%clk 0:03:00.1]} 3... g6 {[%clk 0:02:58.8]}
4. Bg2 {[%clk 0:03:00.6]} 4... Bg7 {[%clk 0:02:59.3]} 5. O-O {[%clk 0:03:00.9]}
5... O-O {[%clk 0:02:59.9]} 6. c4 {[%clk 0:03:01]} 6... d6 {[%clk 0:03:00.3]} 7.
Nc3 {[%clk 0:03:01.1]} 7... Nbd7 {[%clk 0:02:59.7]} 8. Ng5 {[%clk 0:02:52.9]}
8... Nb6 {[%clk 0:02:38.4]} 9. Qb3 {[%clk 0:02:37.6]} 9... c5 {[%clk 0:02:35.3]}
10. d5 {[%clk 0:02:24.4]} 10... Ng4 {[%clk 0:02:23.9]} 11. Ne6 {[%clk
0:01:51.7]} 11... Bxe6 {[%clk 0:02:20.8]} 12. dxe6 {[%clk 0:01:52.6]} 12... Rb8
{[%clk 0:02:19.5]} 13. Nd5 {[%clk 0:01:47.7]} 13... Nxd5 {[%clk 0:02:15.2]} 14.
Bxd5 {[%clk 0:01:42.7]} 14... b5 {[%clk 0:02:04.4]} 15. cxb5 {[%clk 0:01:36.9]}
15... a6 {[%clk 0:02:04.4]} 16. a4 {[%clk 0:01:34.2]} 16... Qa5 {[%clk 0:01:51]}
17. Bg5 {[%clk 0:01:21.9]} 17... Nf6 {[%clk 0:01:42.4]} 18. Bxf6 {[%clk
0:01:16.5]} 18... Bxf6 {[%clk 0:01:40.7]} 19. Bc4 {[%clk 0:01:02.9]} 19... Rfd8
{[%clk 0:01:26]} 20. Rfd1 {[%clk 0:01:02.3]} 20... Kg7 {[%clk 0:01:21.1]} 21.
Rd5 {[%clk 0:01:01.9]} 21... axb5 {[%clk 0:01:17]} 22. Bxb5 {[%clk 0:00:57.3]}
22... Rb6 {[%clk 0:01:12.6]} 23. Rad1 {[%clk 0:00:54.9]} 23... Rdb8 {[%clk
0:01:11.5]} 24. Qc2 {[%clk 0:00:54.2]} 24... Qb4 {[%clk 0:01:10.7]} 25. b3
{[%clk 0:00:48.5]} 25... f4 {[%clk 0:01:04.8]} 26. Qc4 {[%clk 0:00:43.8]} 26...
fxg3 {[%clk 0:01:02.4]} 27. hxg3 {[%clk 0:00:41.5]} 27... Qa3 {[%clk 0:01:02]}
28. Kg2 {[%clk 0:00:34.5]} 28... Be5 {[%clk 0:00:49.1]} 29. f4 {[%clk
0:00:33.2]} 29... Bf6 {[%clk 0:00:48.4]} 30. Rh1 {[%clk 0:00:31]} 30... Qb2
{[%clk 0:00:45.6]} 31. f5 {[%clk 0:00:28.8]} 31... Be5 {[%clk 0:00:42.2]} 32.
Qh4 {[%clk 0:00:25.2]} 32... Rxb5 {[%clk 0:00:27.8]} 33. Qxh7+ {[%clk
0:00:24.5]} 33... Kf6 {[%clk 0:00:28.2]} 34. Qh4+ {[%clk 0:00:12.7]} 34... g5
{[%clk 0:00:27.1]} 35. Qh6+ {[%clk 0:00:08.1]} 35... Kxf5 {[%clk 0:00:27.4]} 36.
Rf1+ {[%clk 0:00:08.1]} 36... Ke4 {[%clk 0:00:25.7]} 37. Rd3 {[%clk 0:00:06.2]}
37... Qxe2+ {[%clk 0:00:25.1]} 38. Kh3 {[%clk 0:00:05.9]} 38... Qxf1+ {[%clk
0:00:24.3]} 39. Kg4 {[%clk 0:00:05.3]} 39... Qf5+ {[%clk 0:00:21.9]} 40. Kh5
{[%clk 0:00:04.5]} 40... g4+ {[%clk 0:00:21.5]} 41. Qg5 {[%clk 0:00:04.3]} 41...
Rh8# {[%clk 0:00:20.3]} 0-1

[Event "*** Titled Tuesday Blitz"]
[Site "Chess.com"]
[Date "2020.12.29"]
[Round "3"]
[White "annacramling"]
[Black "andriipalchuk"]
[Result "0-1"]
[WhiteElo "2069"]
[BlackElo "2475"]
[TimeControl "180+1"]
[EndTime "10:28:36 PST"]
[Termination "andriipalchuk won on time"]

1. d4 {[%clk 0:03:00.9]} 1... Nf6 {[%clk 0:02:55.2]} 2. c4 {[%clk 0:03:00.3]}
2... e6 {[%clk 0:02:55.8]} 3. Nc3 {[%clk 0:02:59.3]} 3... Bb4 {[%clk 0:02:56.1]}
4. Qc2 {[%clk 0:02:59.6]} 4... d5 {[%clk 0:02:55.2]} 5. cxd5 {[%clk 0:02:57.9]}
5... exd5 {[%clk 0:02:56.1]} 6. Bg5 {[%clk 0:02:57.5]} 6... h6 {[%clk
0:02:56.6]} 7. Bh4 {[%clk 0:02:57.7]} 7... g5 {[%clk 0:02:55.3]} 8. Bg3 {[%clk
0:02:58.1]} 8... Nc6 {[%clk 0:02:55.9]} 9. e3 {[%clk 0:02:57.6]} 9... h5 {[%clk
0:02:56.5]} 10. h4 {[%clk 0:02:47.4]} 10... Ne4 {[%clk 0:02:55.2]} 11. Bd3
{[%clk 0:02:39.5]} 11... Nxg3 {[%clk 0:02:52.2]} 12. fxg3 {[%clk 0:02:40.4]}
12... Qe7 {[%clk 0:02:36.9]} 13. Qd2 {[%clk 0:01:47]} 13... Nxd4 {[%clk
0:02:12.2]} 14. O-O-O {[%clk 0:01:46.3]} 14... Ne6 {[%clk 0:02:10.7]} 15. Nf3
{[%clk 0:01:43.7]} 15... g4 {[%clk 0:02:04.8]} 16. Nd4 {[%clk 0:01:37.3]} 16...
c6 {[%clk 0:02:04.1]} 17. Nf5 {[%clk 0:01:36.5]} 17... Qf8 {[%clk 0:02:02.7]}
18. Qc2 {[%clk 0:01:09.1]} 18... Bd7 {[%clk 0:01:59.4]} 19. e4 {[%clk
0:01:06.6]} 19... d4 {[%clk 0:01:37.4]} 20. Ne2 {[%clk 0:01:05.5]} 20... O-O-O
{[%clk 0:01:33.4]} 21. Nexd4 {[%clk 0:00:54.4]} 21... Nxd4 {[%clk 0:01:34.3]}
22. Nxd4 {[%clk 0:00:53.8]} 22... Kb8 {[%clk 0:01:21.6]} 23. Nf5 {[%clk
0:00:53.9]} 23... Qc5 {[%clk 0:01:17.2]} 24. Qxc5 {[%clk 0:00:52.4]} 24... Bxc5
{[%clk 0:01:18.1]} 25. Rhf1 {[%clk 0:00:52.3]} 25... f6 {[%clk 0:01:16.8]} 26.
Kb1 {[%clk 0:00:46.3]} 26... Bc8 {[%clk 0:01:11.1]} 27. Bc4 {[%clk 0:00:32.2]}
27... Rde8 {[%clk 0:00:52.4]} 28. Bd3 {[%clk 0:00:18.3]} 28... Kc7 {[%clk
0:00:46.1]} 29. Ng7 {[%clk 0:00:18.3]} 29... Re7 {[%clk 0:00:43.8]} 30. Nf5
{[%clk 0:00:15.6]} 30... Rf7 {[%clk 0:00:39.5]} 31. a3 {[%clk 0:00:15]} 31...
Be6 {[%clk 0:00:38.8]} 32. b4 {[%clk 0:00:13.9]} 32... Bb6 {[%clk 0:00:39.3]}
33. Kb2 {[%clk 0:00:10.5]} 33... a5 {[%clk 0:00:38.5]} 34. b5 {[%clk 0:00:08.2]}
34... Rd8 {[%clk 0:00:35.8]} 35. bxc6 {[%clk 0:00:07.5]} 35... bxc6 {[%clk
0:00:35.3]} 36. Bc2 {[%clk 0:00:05.1]} 36... Rb8 {[%clk 0:00:34.2]} 37. Kc1
{[%clk 0:00:03.4]} 37... Bc5 {[%clk 0:00:34.4]} 38. Kd2 {[%clk 0:00:03]} 38...
Bxa3 {[%clk 0:00:34.5]} 39. Rb1 {[%clk 0:00:03.4]} 39... Bb4+ {[%clk 0:00:34.7]}
40. Kd3 {[%clk 0:00:03.3]} 40... Rd8+ {[%clk 0:00:35.2]} 41. Ke2 {[%clk
0:00:03.2]} 41... Bc4+ {[%clk 0:00:35.3]} 42. Ke3 {[%clk 0:00:02.6]} 42... Bc5+
{[%clk 0:00:28.1]} 43. Kf4 {[%clk 0:00:01.5]} 43... Bxf1 {[%clk 0:00:28.7]} 0-1

[Event "*** Titled Tuesday Blitz"]
[Site "Chess.com"]
[Date "2020.12.29"]
[Round "3"]
[White "GMBenjaminBok"]
[Black "Harry_Rakkel"]
[Result "1-0"]
[WhiteElo "2885"]
[BlackElo "2638"]
[TimeControl "180+1"]
[EndTime "10:28:37 PST"]
[Termination "GMBenjaminBok won by resignation"]

1. d4 {[%clk 0:03:00.6]} 1... Nf6 {[%clk 0:02:59]} 2. c4 {[%clk 0:02:58.5]} 2...
e6 {[%clk 0:02:59.1]} 3. Nf3 {[%clk 0:02:56.9]} 3... d5 {[%clk 0:02:58.1]} 4.
Nc3 {[%clk 0:02:57.2]} 4... Nbd7 {[%clk 0:02:55.6]} 5. cxd5 {[%clk 0:02:54.2]}
5... exd5 {[%clk 0:02:55]} 6. Bg5 {[%clk 0:02:54.8]} 6... Be7 {[%clk 0:02:53.9]}
7. e3 {[%clk 0:02:55]} 7... O-O {[%clk 0:02:52.5]} 8. Bd3 {[%clk 0:02:54.4]}
8... Re8 {[%clk 0:02:50.8]} 9. Qc2 {[%clk 0:02:53.7]} 9... c6 {[%clk 0:02:50.4]}
10. h3 {[%clk 0:02:53]} 10... Nf8 {[%clk 0:02:47.2]} 11. Bf4 {[%clk 0:02:52.6]}
11... Bd6 {[%clk 0:02:45.6]} 12. Bxd6 {[%clk 0:02:46]} 12... Qxd6 {[%clk
0:02:44.1]} 13. O-O {[%clk 0:02:39.5]} 13... Be6 {[%clk 0:02:23.6]} 14. Rab1
{[%clk 0:02:37.1]} 14... g6 {[%clk 0:02:20.3]} 15. b4 {[%clk 0:02:35.3]} 15...
Rac8 {[%clk 0:02:19.6]} 16. Rfc1 {[%clk 0:02:31.3]} 16... N8d7 {[%clk
0:02:13.7]} 17. Na4 {[%clk 0:02:19.3]} 17... b5 {[%clk 0:01:41.3]} 18. Nc5
{[%clk 0:02:18.3]} 18... Nb6 {[%clk 0:01:40.6]} 19. a4 {[%clk 0:02:18.8]} 19...
bxa4 {[%clk 0:01:32.2]} 20. Nxa4 {[%clk 0:02:12.9]} 20... Nfd7 {[%clk
0:01:30.8]} 21. Nc5 {[%clk 0:02:03.3]} 21... Qe7 {[%clk 0:01:29.6]} 22. Ra1
{[%clk 0:01:52.3]} 22... Rc7 {[%clk 0:01:25.2]} 23. Ra5 {[%clk 0:01:43.8]} 23...
Qf6 {[%clk 0:01:21.3]} 24. Kh2 {[%clk 0:01:15.2]} 24... Nc8 {[%clk 0:01:08.2]}
25. Nxd7 {[%clk 0:01:10.3]} 25... Bxd7 {[%clk 0:01:07]} 26. Ne5 {[%clk
0:00:51.1]} 26... Rxe5 {[%clk 0:01:04.8]} 27. dxe5 {[%clk 0:00:49.9]} 27...
Qxe5+ {[%clk 0:01:05.7]} 28. Kg1 {[%clk 0:00:49.1]} 28... Nd6 {[%clk 0:01:05.3]}
29. Qc3 {[%clk 0:00:32.9]} 29... Qg5 {[%clk 0:01:02.9]} 30. Kf1 {[%clk
0:00:32.5]} 30... Bf5 {[%clk 0:00:57.9]} 31. Rc5 {[%clk 0:00:18.3]} 31... Be4
{[%clk 0:00:42.3]} 32. f3 {[%clk 0:00:13.8]} 32... Nf5 {[%clk 0:00:36.2]} 33.
fxe4 {[%clk 0:00:08.1]} 33... Nxe3+ {[%clk 0:00:35.1]} 34. Ke2 {[%clk
0:00:08.1]} 34... Nxg2 {[%clk 0:00:21.8]} 35. Bb1 {[%clk 0:00:06.3]} 35... Nf4+
{[%clk 0:00:19]} 36. Kd1 {[%clk 0:00:05.3]} 36... d4 {[%clk 0:00:14.1]} 37. Qf3
{[%clk 0:00:03.4]} 37... d3 {[%clk 0:00:10.2]} 38. Rxg5 {[%clk 0:00:02.8]} 1-0

[Event "*** Titled Tuesday Blitz"]
[Site "Chess.com"]
[Date "2020.12.29"]
[Round "3"]
[White "Semen_Khanin"]
[Black "GelmanAlexander"]
[Result "1-0"]
[WhiteElo "2800"]
[BlackElo "2572"]
[TimeControl "180+1"]
[EndTime "10:28:38 PST"]
[Termination "Semen_Khanin won on time"]

1. e4 {[%clk 0:03:00.9]} 1... c5 {[%clk 0:02:59.8]} 2. Nf3 {[%clk 0:03:00.7]}
2... e6 {[%clk 0:03:00.2]} 3. d4 {[%clk 0:03:00.9]} 3... cxd4 {[%clk 0:03:00.5]}
4. Nxd4 {[%clk 0:03:01.8]} 4... a6 {[%clk 0:03:00.9]} 5. c4 {[%clk 0:03:01.7]}
5... b6 {[%clk 0:03:00.8]} 6. Nc3 {[%clk 0:03:01.2]} 6... Bb7 {[%clk 0:03:01.3]}
7. a3 {[%clk 0:02:56.3]} 7... d6 {[%clk 0:03:01.2]} 8. Be3 {[%clk 0:02:55.8]}
8... Nd7 {[%clk 0:03:01.4]} 9. Be2 {[%clk 0:02:52.4]} 9... Ngf6 {[%clk 0:03:02]}
10. f3 {[%clk 0:02:52.2]} 10... Rc8 {[%clk 0:03:02.5]} 11. O-O {[%clk 0:02:52]}
11... h6 {[%clk 0:03:02]} 12. Rc1 {[%clk 0:02:51.6]} 12... g5 {[%clk 0:03:02.2]}
13. b4 {[%clk 0:02:50]} 13... Rg8 {[%clk 0:03:01.7]} 14. Qd2 {[%clk 0:02:45]}
14... g4 {[%clk 0:02:58.1]} 15. Bxh6 {[%clk 0:02:42.7]} 15... gxf3 {[%clk
0:02:50.4]} 16. Bxf3 {[%clk 0:02:40.4]} 16... Bxh6 {[%clk 0:02:37.7]} 17. Qxh6
{[%clk 0:02:39.6]} 17... Rxc4 {[%clk 0:02:33.4]} 18. Nxe6 {[%clk 0:02:26.7]}
18... fxe6 {[%clk 0:02:17.6]} 19. Bh5+ {[%clk 0:02:26.3]} 19... Ke7 {[%clk
0:02:18]} 20. Qh7+ {[%clk 0:02:20.9]} 20... Nxh7 {[%clk 0:02:01.5]} 21. Rf7+
{[%clk 0:02:19.9]} 21... Ke8 {[%clk 0:02:01.9]} 22. Rxh7+ {[%clk 0:02:20.1]}
22... Rg6 {[%clk 0:01:34.5]} 23. Bxg6+ {[%clk 0:01:33.7]} 23... Kf8 {[%clk
0:01:34.3]} 24. Rh8+ {[%clk 0:00:57.8]} 24... Ke7 {[%clk 0:01:34.3]} 25. Rxd8
{[%clk 0:00:57.6]} 25... Kxd8 {[%clk 0:01:35.2]} 26. h4 {[%clk 0:00:56]} 26...
Ne5 {[%clk 0:01:18]} 27. h5 {[%clk 0:00:54.5]} 27... Nxg6 {[%clk 0:00:58.9]} 28.
hxg6 {[%clk 0:00:54.2]} 28... Ke7 {[%clk 0:00:59.4]} 29. Rf1 {[%clk 0:00:53.5]}
29... Bxe4 {[%clk 0:00:26.7]} 30. Rf7+ {[%clk 0:00:21.3]} 30... Ke8 {[%clk
0:00:26.7]} 31. Nxe4 {[%clk 0:00:15.5]} 31... Rxe4 {[%clk 0:00:26]} 32. Rb7
{[%clk 0:00:15.1]} 32... Kf8 {[%clk 0:00:17.6]} 33. Rxb6 {[%clk 0:00:14.7]}
33... a5 {[%clk 0:00:11.6]} 34. bxa5 {[%clk 0:00:11.5]} 34... d5 {[%clk
0:00:06.6]} 35. Rb4 {[%clk 0:00:10.5]} 35... Re3 {[%clk 0:00:05.2]} 36. Ra4
{[%clk 0:00:09.9]} 1-0

[Event "*** Titled Tuesday Blitz"]
[Site "Chess.com"]
[Date "2020.12.29"]
[Round "3"]
[White "GoltsevDmitry2000"]
[Black "Das_Virus_2020"]
[Result "1-0"]
[WhiteElo "2701"]
[BlackElo "2503"]
[TimeControl "180+1"]
[EndTime "10:28:38 PST"]
[Termination "GoltsevDmitry2000 won by resignation"]

1. e4 {[%clk 0:02:26.2]} 1... e6 {[%clk 0:02:58.8]} 2. Nf3 {[%clk 0:02:23.7]}
2... d5 {[%clk 0:02:58.3]} 3. exd5 {[%clk 0:02:24.6]} 3... exd5 {[%clk
0:02:58.1]} 4. d4 {[%clk 0:02:25.5]} 4... Nf6 {[%clk 0:02:57.7]} 5. Bd3 {[%clk
0:02:25.8]} 5... Bd6 {[%clk 0:02:57]} 6. O-O {[%clk 0:02:25.7]} 6... O-O {[%clk
0:02:56.8]} 7. h3 {[%clk 0:02:26.3]} 7... h6 {[%clk 0:02:54.1]} 8. Nc3 {[%clk
0:02:26.7]} 8... Be6 {[%clk 0:02:49.2]} 9. Re1 {[%clk 0:02:22.4]} 9... Re8
{[%clk 0:02:36.3]} 10. Ne5 {[%clk 0:02:21.4]} 10... Nc6 {[%clk 0:02:30]} 11. Bb5
{[%clk 0:02:14.4]} 11... Bd7 {[%clk 0:02:26.4]} 12. f4 {[%clk 0:02:03.2]} 12...
Bb4 {[%clk 0:02:18.6]} 13. Qd3 {[%clk 0:01:48.3]} 13... a6 {[%clk 0:02:11.1]}
14. Bxc6 {[%clk 0:01:39.7]} 14... Bxc6 {[%clk 0:02:00.9]} 15. Bd2 {[%clk
0:01:38.7]} 15... Bxc3 {[%clk 0:01:52.4]} 16. Bxc3 {[%clk 0:01:34.5]} 16... Bb5
{[%clk 0:01:42.7]} 17. Qf3 {[%clk 0:01:32]} 17... Ne4 {[%clk 0:01:40.8]} 18. Re3
{[%clk 0:01:28.5]} 18... f6 {[%clk 0:01:32.2]} 19. Ng4 {[%clk 0:01:23.7]} 19...
Nxc3 {[%clk 0:01:11]} 20. bxc3 {[%clk 0:01:14.5]} 20... Rxe3 {[%clk 0:01:08.1]}
21. Nxe3 {[%clk 0:01:15.4]} 21... Bc6 {[%clk 0:01:01.8]} 22. Nf5 {[%clk
0:01:09.9]} 22... Qd7 {[%clk 0:00:53.8]} 23. Qg4 {[%clk 0:01:08.5]} 23... Kf8
{[%clk 0:00:46.4]} 24. Re1 {[%clk 0:01:06.4]} 24... Re8 {[%clk 0:00:31.9]} 25.
Rxe8+ {[%clk 0:01:01.5]} 25... Kxe8 {[%clk 0:00:31.2]} 26. Nxg7+ {[%clk
0:01:00.7]} 26... Kd8 {[%clk 0:00:29]} 27. f5 {[%clk 0:00:51.7]} 27... Kc8
{[%clk 0:00:24]} 28. Ne6 {[%clk 0:00:49.8]} 28... b6 {[%clk 0:00:22.4]} 29. Qg6
{[%clk 0:00:45.4]} 29... Kb7 {[%clk 0:00:21.2]} 30. Qxf6 {[%clk 0:00:42.7]}
30... Ba4 {[%clk 0:00:21.7]} 31. Qe5 {[%clk 0:00:36.8]} 31... Bxc2 {[%clk
0:00:21]} 32. f6 {[%clk 0:00:37.1]} 32... Bg6 {[%clk 0:00:20]} 33. Nf8 {[%clk
0:00:33]} 33... Qf7 {[%clk 0:00:18.6]} 34. Nxg6 {[%clk 0:00:31.7]} 34... Qxg6
{[%clk 0:00:18.5]} 35. Qxd5+ {[%clk 0:00:32.2]} 35... Ka7 {[%clk 0:00:18.8]} 36.
Qe5 {[%clk 0:00:30.4]} 36... Kb7 {[%clk 0:00:18.3]} 37. Qf4 {[%clk 0:00:28]}
37... Qf7 {[%clk 0:00:17.7]} 38. c4 {[%clk 0:00:27]} 38... a5 {[%clk 0:00:16.6]}
39. d5 {[%clk 0:00:27.4]} 39... a4 {[%clk 0:00:16.8]} 40. a3 {[%clk 0:00:26.9]}
40... Kb8 {[%clk 0:00:15.8]} 41. d6 {[%clk 0:00:25.6]} 41... cxd6 {[%clk
0:00:14.1]} 42. Qxd6+ {[%clk 0:00:26.5]} 42... Ka8 {[%clk 0:00:14.3]} 43. Qd5+
{[%clk 0:00:24.4]} 1-0

[Event "*** Titled Tuesday Blitz"]
[Site "Chess.com"]
[Date "2020.12.29"]
[Round "3"]
[White "LimeInTheCoconut"]
[Black "Ajedrez_con_German"]
[Result "1-0"]
[WhiteElo "2364"]
[BlackElo "2525"]
[TimeControl "180+1"]
[EndTime "10:28:38 PST"]
[Termination "LimeInTheCoconut won on time"]

1. e4 {[%clk 0:03:00.9]} 1... e6 {[%clk 0:02:52]} 2. d3 {[%clk 0:03:00.5]} 2...
c5 {[%clk 0:02:51.4]} 3. Nd2 {[%clk 0:02:53.3]} 3... Nc6 {[%clk 0:02:51.6]} 4.
Ngf3 {[%clk 0:02:46.3]} 4... g6 {[%clk 0:02:49.7]} 5. c3 {[%clk 0:02:45]} 5...
Bg7 {[%clk 0:02:49.3]} 6. Be2 {[%clk 0:02:45.5]} 6... Nge7 {[%clk 0:02:48.5]} 7.
h4 {[%clk 0:02:44.2]} 7... h6 {[%clk 0:02:47.9]} 8. O-O {[%clk 0:02:38.7]} 8...
d6 {[%clk 0:02:47.5]} 9. Re1 {[%clk 0:02:35.7]} 9... e5 {[%clk 0:02:41.5]} 10.
a4 {[%clk 0:02:27.5]} 10... O-O {[%clk 0:02:37.1]} 11. Nc4 {[%clk 0:02:27.9]}
11... Bg4 {[%clk 0:02:32.1]} 12. Nfxe5 {[%clk 0:01:53.7]} 12... Bxe2 {[%clk
0:02:02]} 13. Nxc6 {[%clk 0:01:51.8]} 13... Nxc6 {[%clk 0:01:46.6]} 14. Qxe2
{[%clk 0:01:47.9]} 14... Qxh4 {[%clk 0:01:46.3]} 15. g3 {[%clk 0:01:29.2]} 15...
Qe7 {[%clk 0:01:41.6]} 16. Kg2 {[%clk 0:01:24]} 16... Ne5 {[%clk 0:01:34.9]} 17.
Ne3 {[%clk 0:01:17.1]} 17... h5 {[%clk 0:01:23]} 18. f4 {[%clk 0:01:11]} 18...
Nd7 {[%clk 0:01:20.2]} 19. Nd5 {[%clk 0:01:10.4]} 19... Qd8 {[%clk 0:01:18.2]}
20. g4 {[%clk 0:01:06.9]} 20... hxg4 {[%clk 0:01:16.3]} 21. Qxg4 {[%clk
0:01:07]} 21... Nf6 {[%clk 0:01:15.3]} 22. Nxf6+ {[%clk 0:01:04.2]} 22... Qxf6
{[%clk 0:01:15.1]} 23. Rh1 {[%clk 0:01:00.5]} 23... Rfe8 {[%clk 0:01:09.6]} 24.
Be3 {[%clk 0:00:52.4]} 24... Qe6 {[%clk 0:01:02.8]} 25. Qxe6 {[%clk 0:00:21.9]}
25... Rxe6 {[%clk 0:01:00]} 26. a5 {[%clk 0:00:22]} 26... c4 {[%clk 0:00:57]}
27. Kf3 {[%clk 0:00:14.9]} 27... cxd3 {[%clk 0:00:57.2]} 28. Rhd1 {[%clk
0:00:15]} 28... Rae8 {[%clk 0:00:48.4]} 29. Rxd3 {[%clk 0:00:15.1]} 29... Rxe4
{[%clk 0:00:48]} 30. Bxa7 {[%clk 0:00:15.6]} 30... Bh6 {[%clk 0:00:37.6]} 31.
Be3 {[%clk 0:00:15.5]} 31... f5 {[%clk 0:00:28.4]} 32. Ra3 {[%clk 0:00:15]}
32... R8e7 {[%clk 0:00:17.7]} 33. Rb3 {[%clk 0:00:15.2]} 33... Kf7 {[%clk
0:00:18.1]} 34. Rb6 {[%clk 0:00:15]} 34... R7e6 {[%clk 0:00:17.2]} 35. Rxb7+
{[%clk 0:00:12.5]} 35... Ke8 {[%clk 0:00:15.9]} 36. a6 {[%clk 0:00:11.8]} 36...
Re7 {[%clk 0:00:07.5]} 37. a7 {[%clk 0:00:09.6]} 1-0